[Event "Titled Tuesday Blitz May 16 Late 2023"]
[White "Toniutti, Ezio"]
[Black "Magallanes, Rey Jomar"]
[WhiteFideId "113034"]
[BlackFideId "5205948"]
[WhiteElo "2215"]
[BlackElo "2294"]
[Result "1-0"]
[Round "10"]
[TimeControl "180+2"]
[Date "2023.05.16"]
[WhiteClock "0:00:18"]
[BlackClock "0:01:27"]

1. d4 {[%clk 0:03:00]}  d5 {[%clk 0:02:59]} 2. c4 {[%clk 0:03:00]}  e6 {[%clk 0:02:58]} 3. Nf3 {[%clk 0:03:00]}  Nf6 {[%clk 0:02:59]} 4. g3 {[%clk 0:02:59]}  Be7 {[%clk 0:02:59]} 5. Bg2 {[%clk 0:03:00]}  O-O {[%clk 0:02:59]} 6. O-O {[%clk 0:03:01]}  c6 {[%clk 0:02:59]} 7. Nbd2 {[%clk 0:03:00]}  Nbd7 {[%clk 0:03:00]} 8. Qc2 {[%clk 0:03:01]}  Qc7 {[%clk 0:02:58]} 9. e4 {[%clk 0:03:01]}  dxe4 {[%clk 0:02:56]} 10. Nxe4 {[%clk 0:03:02]}  Nxe4 {[%clk 0:02:56]} 11. Qxe4 {[%clk 0:03:02]}  Nf6 {[%clk 0:02:56]} 12. Qc2 {[%clk 0:03:00]}  c5 {[%clk 0:02:57]} 13. Bf4 {[%clk 0:02:57]}  Qb6 {[%clk 0:02:56]} 14. Rfd1 {[%clk 0:02:48]}  Bd7 {[%clk 0:02:54]} 15. dxc5 {[%clk 0:02:35]}  Bxc5 {[%clk 0:02:55]} 16. Ne5 {[%clk 0:02:35]}  Bc6 {[%clk 0:02:51]} 17. Bxc6 {[%clk 0:02:22]}  bxc6 {[%clk 0:02:52]} 18. b4 {[%clk 0:02:12]}  Bd4 {[%clk 0:02:35]} 19. Rab1 {[%clk 0:01:57]}  c5 {[%clk 0:02:18]} 20. bxc5 {[%clk 0:01:46]}  Qxc5 {[%clk 0:02:18]} 21. Rb5 {[%clk 0:01:46]}  Qd6 {[%clk 0:02:18]} 22. c5 {[%clk 0:01:38]}  Qa6 {[%clk 0:02:11]} 23. a4 {[%clk 0:01:29]}  Rfd8 {[%clk 0:02:07]} 24. c6 {[%clk 0:01:21]}  Rac8 {[%clk 0:02:00]} 25. c7 {[%clk 0:00:38]}  Re8 {[%clk 0:01:47]} 26. Qc4 {[%clk 0:00:33]}  Bxe5 {[%clk 0:01:44]} 27. Bxe5 {[%clk 0:00:33]}  Nd5 {[%clk 0:01:44]} 28. Rdxd5 {[%clk 0:00:28]}  exd5 {[%clk 0:01:44]} 29. Qxd5 {[%clk 0:00:29]}  Qe6 {[%clk 0:01:39]} 30. Qd4 {[%clk 0:00:22]}  f6 {[%clk 0:01:38]} 31. Bf4 {[%clk 0:00:20]}  Qe1+ {[%clk 0:01:37]} 32. Kg2 {[%clk 0:00:20]}  Qe4+ {[%clk 0:01:37]} 33. Qxe4 {[%clk 0:00:20]}  Rxe4 {[%clk 0:01:38]} 34. Rb7 {[%clk 0:00:20]}  a5 {[%clk 0:01:31]} 35. Rb8 {[%clk 0:00:18]}  Ree8 {[%clk 0:01:30]} 36. h4 {[%clk 0:00:17]}  Kf7 {[%clk 0:01:30]} 37. h5 {[%clk 0:00:16]}  g6 {[%clk 0:01:29]} 38. hxg6+ {[%clk 0:00:17]}  hxg6 {[%clk 0:01:30]} 39. g4 {[%clk 0:00:17]}  g5 {[%clk 0:01:30]} 40. Bg3 {[%clk 0:00:17]}  Kg6 {[%clk 0:01:30]} 41. Rb5 {[%clk 0:00:17]}  Rb8 {[%clk 0:01:25]} 42. cxb8=Q {[%clk 0:00:16]}  Rxb8 {[%clk 0:01:25]} 43. Rxb8 {[%clk 0:00:17]}  f5 {[%clk 0:01:24]} 44. Rb6+ {[%clk 0:00:16]}  Kg7 {[%clk 0:01:24]} 45. gxf5 {[%clk 0:00:16]}  Kf7 {[%clk 0:01:24]} 46. Be5 {[%clk 0:00:16]}  g4 {[%clk 0:01:25]} 47. Rb7+ {[%clk 0:00:16]}  Ke8 {[%clk 0:01:25]} 48. f6 {[%clk 0:00:16]}  g3 {[%clk 0:01:25]} 49. f7+ {[%clk 0:00:16]}  Kf8 {[%clk 0:01:25]} 50. Bd6+ {[%clk 0:00:17]}  Kg7 {[%clk 0:01:26]} 51. f8=Q+ {[%clk 0:00:18]}  Kg6 {[%clk 0:01:27]} 52. Rg7+ {[%clk 0:00:18]}  Kh5 {[%clk 0:01:27]} 53. Qh8# {[%clk 0:00:18]} 1-0


[Site "https://www.chess.com"]

[Event "Titled Tuesday Blitz May 16 Late 2023"]
[White "K2JW"]
[Black "Bjelobrk, Igor"]
[BlackFideId "4300726"]
[WhiteElo "2375"]
[BlackElo "2319"]
[Result "0-1"]
[Round "10"]
[TimeControl "180+2"]
[Date "2023.05.16"]
[WhiteClock "0:00:14"]
[BlackClock "0:02:04"]

1. d4 {[%clk 0:03:00]}  e6 {[%clk 0:02:56]} 2. c4 {[%clk 0:02:59]}  b6 {[%clk 0:02:53]} 3. a3 {[%clk 0:02:40]}  Bb7 {[%clk 0:02:51]} 4. Nc3 {[%clk 0:02:40]}  f5 {[%clk 0:02:49]} 5. d5 {[%clk 0:02:24]}  Nf6 {[%clk 0:02:49]} 6. g3 {[%clk 0:02:21]}  Bd6 {[%clk 0:02:48]} 7. Bg2 {[%clk 0:02:20]}  Be5 {[%clk 0:02:46]} 8. Bd2 {[%clk 0:01:51]}  O-O {[%clk 0:02:42]} 9. f4 {[%clk 0:01:20]}  Bxc3 {[%clk 0:02:22]} 10. Bxc3 {[%clk 0:01:19]}  exd5 {[%clk 0:02:22]} 11. cxd5 {[%clk 0:00:55]}  Re8 {[%clk 0:02:08]} 12. Qd4 {[%clk 0:00:34]}  d6 {[%clk 0:02:05]} 13. O-O-O {[%clk 0:00:33]}  Nbd7 {[%clk 0:02:05]} 14. Re1 {[%clk 0:00:17]}  Nc5 {[%clk 0:02:04]} 15. Nh3 {[%clk 0:00:14]}  Nb3+ {[%clk 0:02:04]} 0-1


[Site "https://www.chess.com"]

[Event "Titled Tuesday Blitz May 16 Late 2023"]
[White "ArchibaldCerveza29"]
[Black "Fishbein, Mitch"]
[BlackFideId "30922917"]
[WhiteElo "2368"]
[BlackElo "1964"]
[Result "1-0"]
[Round "10"]
[TimeControl "180+2"]
[Date "2023.05.16"]
[WhiteClock "0:01:01"]
[BlackClock "0:00:00"]

1. d4 {[%clk 0:02:47]}  Nf6 {[%clk 0:02:57]} 2. c4 {[%clk 0:02:47]}  g6 {[%clk 0:02:58]} 3. Nc3 {[%clk 0:02:47]}  Bg7 {[%clk 0:02:58]} 4. e4 {[%clk 0:02:47]}  d6 {[%clk 0:02:58]} 5. Be2 {[%clk 0:02:48]}  O-O {[%clk 0:02:58]} 6. Nf3 {[%clk 0:02:48]}  e5 {[%clk 0:02:54]} 7. dxe5 {[%clk 0:02:49]}  dxe5 {[%clk 0:02:54]} 8. Qxd8 {[%clk 0:02:50]}  Rxd8 {[%clk 0:02:54]} 9. Bg5 {[%clk 0:02:51]}  Re8 {[%clk 0:02:52]} 10. O-O-O {[%clk 0:02:50]}  c6 {[%clk 0:02:49]} 11. Nxe5 {[%clk 0:02:50]}  Na6 {[%clk 0:02:20]} 12. f4 {[%clk 0:02:48]}  Nc5 {[%clk 0:02:14]} 13. Bf3 {[%clk 0:02:48]}  a5 {[%clk 0:02:14]} 14. Rd6 {[%clk 0:02:42]}  Be6 {[%clk 0:01:58]} 15. Rhd1 {[%clk 0:02:37]}  h6 {[%clk 0:01:44]} 16. Bh4 {[%clk 0:02:35]}  g5 {[%clk 0:01:37]} 17. Bg3 {[%clk 0:02:28]}  g4 {[%clk 0:01:34]} 18. Bf2 {[%clk 0:02:15]}  gxf3 {[%clk 0:01:26]} 19. Bxc5 {[%clk 0:02:15]}  fxg2 {[%clk 0:00:35]} 20. R6d2 {[%clk 0:02:13]}  Bh3 {[%clk 0:00:34]} 21. Rd3 {[%clk 0:02:08]}  Be6 {[%clk 0:00:31]} 22. Rg1 {[%clk 0:01:53]}  Nh5 {[%clk 0:00:31]} 23. Be3 {[%clk 0:01:52]}  Bh3 {[%clk 0:00:29]} 24. Bd2 {[%clk 0:01:48]}  Be6 {[%clk 0:00:24]} 25. Rxg2 {[%clk 0:01:45]}  Kh7 {[%clk 0:00:16]} 26. c5 {[%clk 0:01:39]}  Bxe5 {[%clk 0:00:11]} 27. fxe5 {[%clk 0:01:40]}  Rg8 {[%clk 0:00:11]} 28. Rf2 {[%clk 0:01:37]}  Rg1+ {[%clk 0:00:10]} 29. Kc2 {[%clk 0:01:37]}  Rag8 {[%clk 0:00:10]} 30. Rdf3 {[%clk 0:01:30]}  R1g2 {[%clk 0:00:09]} 31. Nd1 {[%clk 0:01:27]}  Rxf2 {[%clk 0:00:10]} 32. Rxf2 {[%clk 0:01:26]}  Rg1 {[%clk 0:00:10]} 33. Ne3 {[%clk 0:01:21]}  Rh1 {[%clk 0:00:09]} 34. Nf5 {[%clk 0:01:17]}  Ng7 {[%clk 0:00:09]} 35. Nxh6 {[%clk 0:01:10]}  Nh5 {[%clk 0:00:05]} 36. Nxf7 {[%clk 0:01:09]}  Bxf7 {[%clk 0:00:03]} 37. Rxf7+ {[%clk 0:01:10]}  Kg6 {[%clk 0:00:04]} 38. Rxb7 {[%clk 0:01:09]}  Rxh2 {[%clk 0:00:04]} 39. Rc7 {[%clk 0:01:04]}  Ng3 {[%clk 0:00:05]} 40. Rxc6+ {[%clk 0:01:03]}  Kf7 {[%clk 0:00:05]} 41. Kd3 {[%clk 0:01:04]}  Nf1 {[%clk 0:00:03]} 42. Bf4 {[%clk 0:01:03]}  Rxb2 {[%clk 0:00:03]} 43. e6+ {[%clk 0:01:04]}  Ke7 {[%clk 0:00:04]} 44. Bg5+ {[%clk 0:01:04]}  Kf8 {[%clk 0:00:03]} 45. e7+ {[%clk 0:01:03]}  Kf7 {[%clk 0:00:04]} 46. Rf6+ {[%clk 0:01:02]}  Kxe7 {[%clk 0:00:03]} 47. Rf2+ {[%clk 0:01:00]}  Kd7 {[%clk 0:00:00]} 48. Rxb2 {[%clk 0:01:01]} 1-0


[Site "https://www.chess.com"]

[Event "Titled Tuesday Blitz May 16 Late 2023"]
[White "Hajiyev, Kanan"]
[Black "Shapiro, Daniel"]
[WhiteFideId "13404148"]
[BlackFideId "2001780"]
[WhiteElo "2103"]
[BlackElo "2374"]
[Result "1-0"]
[Round "10"]
[TimeControl "180+2"]
[Date "2023.05.16"]
[WhiteClock "0:00:45"]
[BlackClock "0:00:00"]

1. d4 {[%clk 0:02:52]}  Nf6 {[%clk 0:03:00]} 2. Nf3 {[%clk 0:02:52]}  b6 {[%clk 0:02:59]} 3. e3 {[%clk 0:02:53]}  e6 {[%clk 0:02:59]} 4. Be2 {[%clk 0:02:53]}  Bb7 {[%clk 0:02:57]} 5. O-O {[%clk 0:02:54]}  d6 {[%clk 0:02:55]} 6. c4 {[%clk 0:02:55]}  Nbd7 {[%clk 0:02:53]} 7. a4 {[%clk 0:02:55]}  a5 {[%clk 0:02:45]} 8. b3 {[%clk 0:02:55]}  g6 {[%clk 0:02:26]} 9. Bb2 {[%clk 0:02:54]}  Bg7 {[%clk 0:02:25]} 10. Nc3 {[%clk 0:02:54]}  O-O {[%clk 0:02:24]} 11. Qc2 {[%clk 0:02:52]}  Rc8 {[%clk 0:02:18]} 12. Rad1 {[%clk 0:02:50]}  Qe7 {[%clk 0:02:08]} 13. e4 {[%clk 0:02:45]}  c5 {[%clk 0:01:56]} 14. e5 {[%clk 0:02:24]}  dxe5 {[%clk 0:01:43]} 15. dxe5 {[%clk 0:02:25]}  Ng4 {[%clk 0:01:39]} 16. Ne4 {[%clk 0:02:25]}  Ngxe5 {[%clk 0:01:36]} 17. Nxe5 {[%clk 0:02:10]}  Nxe5 {[%clk 0:01:36]} 18. Nd6 {[%clk 0:02:10]}  Rcd8 {[%clk 0:01:30]} 19. Nxb7 {[%clk 0:02:09]}  Qxb7 {[%clk 0:01:30]} 20. Qc3 {[%clk 0:01:51]}  f6 {[%clk 0:01:13]} 21. f4 {[%clk 0:01:43]}  Nc6 {[%clk 0:00:53]} 22. Bf3 {[%clk 0:01:43]}  Qc7 {[%clk 0:00:54]} 23. Qe3 {[%clk 0:01:32]}  Rfe8 {[%clk 0:00:37]} 24. Rxd8 {[%clk 0:01:30]}  Nxd8 {[%clk 0:00:38]} 25. Re1 {[%clk 0:01:27]}  Nc6 {[%clk 0:00:35]} 26. g3 {[%clk 0:01:26]}  Kf7 {[%clk 0:00:31]} 27. h4 {[%clk 0:01:25]}  Bh6 {[%clk 0:00:22]} 28. Qe4 {[%clk 0:01:24]}  Nb4 {[%clk 0:00:18]} 29. h5 {[%clk 0:01:21]}  Qe7 {[%clk 0:00:16]} 30. hxg6+ {[%clk 0:01:19]}  hxg6 {[%clk 0:00:16]} 31. Kg2 {[%clk 0:01:20]}  Rd8 {[%clk 0:00:16]} 32. Bc3 {[%clk 0:01:00]}  Rd6 {[%clk 0:00:10]} 33. Rh1 {[%clk 0:00:59]}  Kg7 {[%clk 0:00:08]} 34. g4 {[%clk 0:00:53]}  g5 {[%clk 0:00:00]} 35. fxg5 {[%clk 0:00:45]} 1-0


[Site "https://www.chess.com"]

[Event "Titled Tuesday Blitz May 16 Late 2023"]
[White "Vaglio Munoz, Jaime"]
[Black "Estrada Nieto, Julian"]
[WhiteFideId "6500145"]
[BlackFideId "5101018"]
[WhiteElo "2199"]
[BlackElo "2161"]
[Result "1-0"]
[Round "10"]
[TimeControl "180+2"]
[Date "2023.05.16"]
[WhiteClock "0:02:18"]
[BlackClock "0:00:32"]

1. Nf3 {[%clk 0:03:00]}  d5 {[%clk 0:02:57]} 2. c4 {[%clk 0:03:00]}  dxc4 {[%clk 0:02:55]} 3. Qc2 {[%clk 0:02:58]}  Nf6 {[%clk 0:02:54]} 4. Qxc4 {[%clk 0:02:57]}  c6 {[%clk 0:02:54]} 5. d4 {[%clk 0:02:57]}  Bf5 {[%clk 0:02:54]} 6. Nc3 {[%clk 0:02:56]}  e6 {[%clk 0:02:53]} 7. g3 {[%clk 0:02:55]}  Nbd7 {[%clk 0:02:50]} 8. Bg2 {[%clk 0:02:55]}  Be7 {[%clk 0:02:51]} 9. O-O {[%clk 0:02:54]}  O-O {[%clk 0:02:51]} 10. b4 {[%clk 0:02:54]}  Bc2 {[%clk 0:02:36]} 11. a4 {[%clk 0:02:52]}  a5 {[%clk 0:02:12]} 12. b5 {[%clk 0:02:48]}  Rc8 {[%clk 0:02:11]} 13. Qa2 {[%clk 0:02:42]}  cxb5 {[%clk 0:02:05]} 14. Nxb5 {[%clk 0:02:36]}  Be4 {[%clk 0:02:04]} 15. Bf4 {[%clk 0:02:34]}  Rc2 {[%clk 0:01:56]} 16. Qb3 {[%clk 0:02:30]}  Rxe2 {[%clk 0:01:54]} 17. Rfc1 {[%clk 0:02:26]}  Bb4 {[%clk 0:01:42]} 18. Bd6 {[%clk 0:02:21]}  Re8 {[%clk 0:01:11]} 19. Bxb4 {[%clk 0:02:19]}  axb4 {[%clk 0:01:12]} 20. Qxb4 {[%clk 0:02:20]}  Nd5 {[%clk 0:01:04]} 21. Qc4 {[%clk 0:02:19]}  Rd2 {[%clk 0:00:32]} 22. Nxd2 {[%clk 0:02:18]} 1-0


[Site "https://www.chess.com"]

[Event "Titled Tuesday Blitz May 16 Late 2023"]
[White "mohsengabr2002"]
[Black "Stork, Oliver"]
[BlackFideId "12955728"]
[WhiteElo "2357"]
[BlackElo "2239"]
[Result "1-0"]
[Round "10"]
[TimeControl "180+2"]
[Date "2023.05.16"]
[WhiteClock "0:00:55"]
[BlackClock "0:02:03"]

1. e4 {[%clk 0:03:00]}  c6 {[%clk 0:02:59]} 2. d4 {[%clk 0:02:54]}  d5 {[%clk 0:02:58]} 3. Nd2 {[%clk 0:02:52]}  dxe4 {[%clk 0:02:58]} 4. Nxe4 {[%clk 0:02:50]}  Nf6 {[%clk 0:02:59]} 5. Ng3 {[%clk 0:02:49]}  h5 {[%clk 0:02:58]} 6. h4 {[%clk 0:02:29]}  Bg4 {[%clk 0:02:57]} 7. f3 {[%clk 0:02:24]}  Be6 {[%clk 0:02:40]} 8. N1e2 {[%clk 0:02:19]}  g6 {[%clk 0:02:39]} 9. Nf4 {[%clk 0:02:16]}  Bd5 {[%clk 0:02:37]} 10. c4 {[%clk 0:02:13]}  Be6 {[%clk 0:02:37]} 11. Nxe6 {[%clk 0:02:11]}  fxe6 {[%clk 0:02:38]} 12. Bd3 {[%clk 0:02:11]}  Kf7 {[%clk 0:02:33]} 13. Be3 {[%clk 0:02:06]}  Bg7 {[%clk 0:02:25]} 14. Qc2 {[%clk 0:02:05]}  Qa5+ {[%clk 0:02:18]} 15. Bd2 {[%clk 0:02:02]}  Qb6 {[%clk 0:02:17]} 16. Bxg6+ {[%clk 0:01:53]}  Kf8 {[%clk 0:02:17]} 17. Be3 {[%clk 0:01:34]}  Qa5+ {[%clk 0:02:14]} 18. Kf2 {[%clk 0:01:30]}  Nbd7 {[%clk 0:02:10]} 19. Ne4 {[%clk 0:01:25]}  Nxe4+ {[%clk 0:02:07]} 20. fxe4 {[%clk 0:01:23]}  Nf6 {[%clk 0:02:07]} 21. e5 {[%clk 0:01:06]}  Ng4+ {[%clk 0:02:07]} 22. Ke2 {[%clk 0:01:05]}  Bh6 {[%clk 0:02:08]} 23. Raf1+ {[%clk 0:01:01]}  Kg7 {[%clk 0:02:08]} 24. Rf7+ {[%clk 0:01:01]}  Kg8 {[%clk 0:02:09]} 25. Bh7+ {[%clk 0:00:56]}  Kxf7 {[%clk 0:02:07]} 26. Qg6+ {[%clk 0:00:56]}  Kf8 {[%clk 0:02:04]} 27. Rf1+ {[%clk 0:00:56]}  Nf6 {[%clk 0:02:03]} 28. Bxh6# {[%clk 0:00:55]} 1-0


[Site "https://www.chess.com"]

[Event "Titled Tuesday Blitz May 16 Late 2023"]
[White "Pires, Marcos Vinicius Torsani"]
[Black "Slavin, Alexey"]
[WhiteFideId "2118939"]
[BlackFideId "24104388"]
[WhiteElo "2273"]
[BlackElo "2264"]
[Result "1-0"]
[Round "10"]
[TimeControl "180+2"]
[Date "2023.05.16"]
[WhiteClock "0:00:25"]
[BlackClock "0:00:03"]

1. d4 {[%clk 0:02:59]}  Nc6 {[%clk 0:02:58]} 2. Bf4 {[%clk 0:02:59]}  d6 {[%clk 0:02:58]} 3. Nf3 {[%clk 0:02:58]}  Bg4 {[%clk 0:02:58]} 4. Nbd2 {[%clk 0:02:53]}  e6 {[%clk 0:02:55]} 5. h3 {[%clk 0:02:53]}  Bh5 {[%clk 0:02:55]} 6. c3 {[%clk 0:02:51]}  Nf6 {[%clk 0:02:55]} 7. Qb3 {[%clk 0:02:50]}  Qc8 {[%clk 0:02:54]} 8. e3 {[%clk 0:02:44]}  Be7 {[%clk 0:02:53]} 9. Be2 {[%clk 0:02:35]}  O-O {[%clk 0:02:53]} 10. e4 {[%clk 0:02:20]}  a6 {[%clk 0:02:50]} 11. a4 {[%clk 0:02:17]}  Bg6 {[%clk 0:02:45]} 12. e5 {[%clk 0:02:08]}  dxe5 {[%clk 0:02:34]} 13. Nxe5 {[%clk 0:02:06]}  Nxe5 {[%clk 0:02:31]} 14. Bxe5 {[%clk 0:02:06]}  c5 {[%clk 0:02:15]} 15. O-O {[%clk 0:01:50]}  cxd4 {[%clk 0:02:15]} 16. Bxd4 {[%clk 0:01:49]}  Ne4 {[%clk 0:02:08]} 17. Rfd1 {[%clk 0:01:31]}  Rd8 {[%clk 0:02:05]} 18. Bf3 {[%clk 0:01:29]}  Nc5 {[%clk 0:01:50]} 19. Bxc5 {[%clk 0:01:22]}  Qxc5 {[%clk 0:01:50]} 20. Ne4 {[%clk 0:01:13]}  Qc7 {[%clk 0:01:07]} 21. Rxd8+ {[%clk 0:00:56]}  Rxd8 {[%clk 0:01:07]} 22. Rd1 {[%clk 0:00:56]}  Rxd1+ {[%clk 0:01:04]} 23. Qxd1 {[%clk 0:00:57]}  h6 {[%clk 0:01:03]} 24. Qd4 {[%clk 0:00:55]}  e5 {[%clk 0:00:54]} 25. Qd5 {[%clk 0:00:49]}  Kh7 {[%clk 0:00:50]} 26. Nd2 {[%clk 0:00:33]}  b6 {[%clk 0:00:50]} 27. Nc4 {[%clk 0:00:31]}  Bf6 {[%clk 0:00:31]} 28. Be4 {[%clk 0:00:31]}  Bxe4 {[%clk 0:00:15]} 29. Qxe4+ {[%clk 0:00:31]}  g6 {[%clk 0:00:16]} 30. Qd5 {[%clk 0:00:31]}  Kg7 {[%clk 0:00:15]} 31. Nd6 {[%clk 0:00:31]}  Qd7 {[%clk 0:00:12]} 32. g4 {[%clk 0:00:25]}  g5 {[%clk 0:00:11]} 33. Nf5+ {[%clk 0:00:25]}  Qxf5 {[%clk 0:00:06]} 34. gxf5 {[%clk 0:00:25]}  e4 {[%clk 0:00:03]} 35. Qxe4 {[%clk 0:00:25]} 1-0


[Site "https://www.chess.com"]

[Event "Titled Tuesday Blitz May 16 Late 2023"]
[White "Mazurkiewicz, Michal"]
[Black "Torres Dominguez, David"]
[WhiteFideId "1124943"]
[BlackFideId "2220857"]
[WhiteElo "2054"]
[BlackElo "1999"]
[Result "0-1"]
[Round "10"]
[TimeControl "180+2"]
[Date "2023.05.16"]
[WhiteClock "0:00:00"]
[BlackClock "0:00:59"]

1. e4 {[%clk 0:03:00]}  e5 {[%clk 0:03:00]} 2. Nf3 {[%clk 0:03:00]}  Nc6 {[%clk 0:02:57]} 3. Bb5 {[%clk 0:03:00]}  Nge7 {[%clk 0:02:56]} 4. c3 {[%clk 0:03:00]}  g6 {[%clk 0:02:56]} 5. d4 {[%clk 0:03:00]}  Bg7 {[%clk 0:02:55]} 6. d5 {[%clk 0:03:00]}  a6 {[%clk 0:02:53]} 7. Bd3 {[%clk 0:02:52]}  Na7 {[%clk 0:02:52]} 8. c4 {[%clk 0:02:52]}  d6 {[%clk 0:02:51]} 9. Nc3 {[%clk 0:02:50]}  O-O {[%clk 0:02:48]} 10. O-O {[%clk 0:02:50]}  b5 {[%clk 0:02:43]} 11. cxb5 {[%clk 0:02:48]}  Nxb5 {[%clk 0:02:40]} 12. Nxb5 {[%clk 0:02:48]}  axb5 {[%clk 0:02:35]} 13. Bxb5 {[%clk 0:02:49]}  f5 {[%clk 0:02:32]} 14. Ng5 {[%clk 0:02:49]}  h6 {[%clk 0:02:12]} 15. Ne6 {[%clk 0:02:48]}  Bxe6 {[%clk 0:02:11]} 16. dxe6 {[%clk 0:02:48]}  c6 {[%clk 0:02:12]} 17. Bd3 {[%clk 0:02:39]}  fxe4 {[%clk 0:02:08]} 18. Bxe4 {[%clk 0:02:39]}  d5 {[%clk 0:02:08]} 19. Bc2 {[%clk 0:02:26]}  Qd6 {[%clk 0:02:05]} 20. Qg4 {[%clk 0:02:22]}  e4 {[%clk 0:02:01]} 21. Bb3 {[%clk 0:01:34]}  Rf6 {[%clk 0:01:55]} 22. Re1 {[%clk 0:01:22]}  h5 {[%clk 0:01:43]} 23. Qg3 {[%clk 0:01:03]}  Qxg3 {[%clk 0:01:38]} 24. hxg3 {[%clk 0:01:04]}  Rxe6 {[%clk 0:01:37]} 25. f3 {[%clk 0:01:04]}  e3 {[%clk 0:01:30]} 26. Kf1 {[%clk 0:00:29]}  Nf5 {[%clk 0:01:24]} 27. g4 {[%clk 0:00:25]}  hxg4 {[%clk 0:01:18]} 28. fxg4 {[%clk 0:00:18]}  e2+ {[%clk 0:01:18]} 29. Kf2 {[%clk 0:00:11]}  Bd4+ {[%clk 0:01:16]} 30. Kf3 {[%clk 0:00:11]}  Rf8 {[%clk 0:01:09]} 31. gxf5 {[%clk 0:00:10]}  Rxf5+ {[%clk 0:01:09]} 32. Kg3 {[%clk 0:00:10]}  Bf2+ {[%clk 0:01:04]} 33. Kh3 {[%clk 0:00:00]}  Bxe1 {[%clk 0:00:59]} 0-1


[Site "https://www.chess.com"]

[Event "Titled Tuesday Blitz May 16 Late 2023"]
[White "Seletsky, Grigory"]
[Black "Vifleemskaia, Svetlana"]
[WhiteFideId "14112191"]
[BlackFideId "4129490"]
[WhiteElo "2491"]
[BlackElo "1930"]
[Result "0-1"]
[Round "10"]
[TimeControl "180+2"]
[Date "2023.05.16"]
[WhiteClock "0:00:20"]
[BlackClock "0:00:38"]

1. e4 {[%clk 0:02:58]}  e5 {[%clk 0:02:59]} 2. Nf3 {[%clk 0:02:57]}  Nc6 {[%clk 0:02:59]} 3. Bc4 {[%clk 0:02:57]}  Nf6 {[%clk 0:02:59]} 4. d3 {[%clk 0:02:56]}  Be7 {[%clk 0:02:58]} 5. O-O {[%clk 0:02:55]}  O-O {[%clk 0:02:59]} 6. Re1 {[%clk 0:02:55]}  d5 {[%clk 0:02:55]} 7. c3 {[%clk 0:02:56]}  dxc4 {[%clk 0:02:55]} 8. d4 {[%clk 0:02:55]}  exd4 {[%clk 0:02:51]} 9. e5 {[%clk 0:02:55]}  Nd5 {[%clk 0:02:48]} 10. cxd4 {[%clk 0:02:54]}  Bg4 {[%clk 0:02:46]} 11. Nc3 {[%clk 0:02:53]}  Nxc3 {[%clk 0:02:37]} 12. bxc3 {[%clk 0:02:52]}  Qd5 {[%clk 0:02:37]} 13. h3 {[%clk 0:02:41]}  Bf5 {[%clk 0:02:27]} 14. Nh2 {[%clk 0:02:28]}  b5 {[%clk 0:02:25]} 15. g4 {[%clk 0:02:23]}  Bd3 {[%clk 0:02:23]} 16. Be3 {[%clk 0:02:15]}  b4 {[%clk 0:02:21]} 17. Bd2 {[%clk 0:02:01]}  bxc3 {[%clk 0:02:20]} 18. Bxc3 {[%clk 0:02:01]}  Nxd4 {[%clk 0:02:19]} 19. Re3 {[%clk 0:01:56]}  Nb5 {[%clk 0:02:15]} 20. Qe1 {[%clk 0:01:39]}  Nxc3 {[%clk 0:02:10]} 21. Qxc3 {[%clk 0:01:39]}  Bc5 {[%clk 0:02:09]} 22. Rae1 {[%clk 0:01:34]}  Bxe3 {[%clk 0:02:07]} 23. Rxe3 {[%clk 0:01:35]}  Rab8 {[%clk 0:02:04]} 24. Nf3 {[%clk 0:01:34]}  Rb1+ {[%clk 0:02:02]} 25. Kh2 {[%clk 0:01:34]}  Rfb8 {[%clk 0:01:56]} 26. e6 {[%clk 0:01:31]}  fxe6 {[%clk 0:01:52]} 27. Kg3 {[%clk 0:01:26]}  Qd6+ {[%clk 0:01:49]} 28. Kh4 {[%clk 0:01:20]}  h6 {[%clk 0:01:44]} 29. Ne5 {[%clk 0:01:14]}  Rg1 {[%clk 0:01:24]} 30. Rg3 {[%clk 0:00:56]}  Rxg3 {[%clk 0:01:22]} 31. Kxg3 {[%clk 0:00:56]}  Rf8 {[%clk 0:01:15]} 32. f4 {[%clk 0:00:54]}  g5 {[%clk 0:01:14]} 33. fxg5 {[%clk 0:00:50]}  hxg5 {[%clk 0:01:12]} 34. a4 {[%clk 0:00:46]}  a6 {[%clk 0:00:58]} 35. a5 {[%clk 0:00:45]}  Rb8 {[%clk 0:00:50]} 36. Kf2 {[%clk 0:00:38]}  Rf8+ {[%clk 0:00:45]} 37. Kg3 {[%clk 0:00:37]}  Rf1 {[%clk 0:00:44]} 38. Kg2 {[%clk 0:00:36]}  Qd5+ {[%clk 0:00:42]} 39. Kg3 {[%clk 0:00:20]}  Qe4 {[%clk 0:00:38]} 0-1


[Site "https://www.chess.com"]

[Event "Titled Tuesday Blitz May 16 Late 2023"]
[White "Einarsson, Halldor Gretar"]
[Black "Novikova, Galina"]
[WhiteFideId "2300150"]
[BlackFideId "4157095"]
[WhiteElo "2110"]
[BlackElo "1953"]
[Result "1-0"]
[Round "10"]
[TimeControl "180+2"]
[Date "2023.05.16"]
[WhiteClock "0:00:10"]
[BlackClock "0:01:04"]

1. d4 {[%clk 0:02:59]}  Nf6 {[%clk 0:02:58]} 2. c4 {[%clk 0:02:58]}  g6 {[%clk 0:02:59]} 3. f3 {[%clk 0:02:58]}  Bg7 {[%clk 0:03:00]} 4. e4 {[%clk 0:02:58]}  d6 {[%clk 0:03:01]} 5. Nc3 {[%clk 0:02:58]}  O-O {[%clk 0:03:00]} 6. Be3 {[%clk 0:02:58]}  Nc6 {[%clk 0:02:59]} 7. Qd2 {[%clk 0:02:58]}  e5 {[%clk 0:03:00]} 8. Nge2 {[%clk 0:02:58]}  exd4 {[%clk 0:03:00]} 9. Nxd4 {[%clk 0:02:57]}  a6 {[%clk 0:02:57]} 10. h4 {[%clk 0:02:49]}  h5 {[%clk 0:02:43]} 11. O-O-O {[%clk 0:02:41]}  Bd7 {[%clk 0:02:39]} 12. g4 {[%clk 0:02:36]}  b5 {[%clk 0:02:30]} 13. g5 {[%clk 0:01:50]}  Ne8 {[%clk 0:02:19]} 14. f4 {[%clk 0:01:33]}  b4 {[%clk 0:02:08]} 15. Nd5 {[%clk 0:01:30]}  Nxd4 {[%clk 0:02:03]} 16. Bxd4 {[%clk 0:01:30]}  c6 {[%clk 0:02:03]} 17. Bxg7 {[%clk 0:01:26]}  Kxg7 {[%clk 0:01:57]} 18. Nxb4 {[%clk 0:01:20]}  Rb8 {[%clk 0:01:53]} 19. Nc2 {[%clk 0:01:10]}  Qb6 {[%clk 0:01:51]} 20. Qd4+ {[%clk 0:01:04]}  Kg8 {[%clk 0:01:51]} 21. Qxb6 {[%clk 0:01:01]}  Rxb6 {[%clk 0:01:52]} 22. c5 {[%clk 0:00:59]}  Rb8 {[%clk 0:01:47]} 23. cxd6 {[%clk 0:00:51]}  Ng7 {[%clk 0:01:47]} 24. Bxa6 {[%clk 0:00:44]}  Ne6 {[%clk 0:01:46]} 25. Rhf1 {[%clk 0:00:44]}  Nc5 {[%clk 0:01:44]} 26. Bc4 {[%clk 0:00:40]}  Nxe4 {[%clk 0:01:44]} 27. Rfe1 {[%clk 0:00:33]}  Nf2 {[%clk 0:01:33]} 28. Rd2 {[%clk 0:00:30]}  Ng4 {[%clk 0:01:33]} 29. Re7 {[%clk 0:00:29]}  Rbd8 {[%clk 0:01:30]} 30. Nd4 {[%clk 0:00:23]}  Kg7 {[%clk 0:01:28]} 31. Be6 {[%clk 0:00:18]}  c5 {[%clk 0:01:16]} 32. Bxd7 {[%clk 0:00:13]}  cxd4 {[%clk 0:01:17]} 33. Rxd4 {[%clk 0:00:13]}  Nf2 {[%clk 0:01:14]} 34. Re2 {[%clk 0:00:12]}  Nh3 {[%clk 0:01:08]} 35. Bxh3 {[%clk 0:00:12]}  Rc8+ {[%clk 0:01:06]} 36. Kd2 {[%clk 0:00:12]}  Rb8 {[%clk 0:01:06]} 37. b3 {[%clk 0:00:12]}  Rfd8 {[%clk 0:01:06]} 38. d7 {[%clk 0:00:12]}  Ra8 {[%clk 0:01:07]} 39. a4 {[%clk 0:00:10]}  Rab8 {[%clk 0:01:07]} 40. Kc2 {[%clk 0:00:10]}  Kf8 {[%clk 0:01:06]} 41. Rde4 {[%clk 0:00:09]}  Kg7 {[%clk 0:01:05]} 42. Re8 {[%clk 0:00:09]}  Ra8 {[%clk 0:01:05]} 43. Rxd8 {[%clk 0:00:09]}  Rxd8 {[%clk 0:01:04]} 44. Re8 {[%clk 0:00:10]} 1-0


[Site "https://www.chess.com"]